[Event "*** SCC Grand Prix: Titled Tuesday Blitz"]
[Site "Chess.com"]
[Date "2020.08.25"]
[Round "9"]
[White "ClydeHillKid"]
[Black "ural58"]
[Result "0-1"]
[WhiteElo "2343"]
[BlackElo "2487"]
[TimeControl "180+1"]
[EndTime "11:47:43 PDT"]
[Termination "ural58 won by resignation"]

1. e4 {[%clk 0:03:00.9]} 1... d5 {[%clk 0:02:59.6]} 2. exd5 {[%clk 0:03:00.6]}
2... Qxd5 {[%clk 0:03:00.3]} 3. Nc3 {[%clk 0:03:00.9]} 3... Qa5 {[%clk
0:03:00.7]} 4. Bc4 {[%clk 0:03:00.5]} 4... Nf6 {[%clk 0:03:01.2]} 5. d4 {[%clk
0:02:59.5]} 5... Bg4 {[%clk 0:03:01.5]} 6. f3 {[%clk 0:02:55]} 6... Be6 {[%clk
0:03:01.2]} 7. Bxe6 {[%clk 0:02:54]} 7... fxe6 {[%clk 0:03:02.1]} 8. Ne2 {[%clk
0:02:53.8]} 8... Nc6 {[%clk 0:03:02.2]} 9. O-O {[%clk 0:02:53.3]} 9... O-O-O
{[%clk 0:03:02.1]} 10. Be3 {[%clk 0:02:52.4]} 10... e5 {[%clk 0:03:02.3]} 11. d5
{[%clk 0:02:40.4]} 11... e6 {[%clk 0:03:01.1]} 12. a3 {[%clk 0:02:36]} 12...
Nxd5 {[%clk 0:02:47]} 13. Bd2 {[%clk 0:02:28.3]} 13... Qb6+ {[%clk 0:02:45.6]}
14. Kh1 {[%clk 0:02:28.3]} 14... Nxc3 {[%clk 0:02:41.8]} 15. Nxc3 {[%clk
0:02:26.8]} 15... Qxb2 {[%clk 0:02:41.1]} 16. Rb1 {[%clk 0:01:57.6]} 16... Qxa3
{[%clk 0:02:36.2]} 17. Qe2 {[%clk 0:01:57.9]} 17... Bb4 {[%clk 0:02:21.1]} 18.
Nb5 {[%clk 0:01:55.6]} 18... Rxd2 {[%clk 0:02:10.5]} 19. Qxd2 {[%clk 0:01:54.9]}
19... Bxd2 {[%clk 0:02:09.7]} 20. Nxa3 {[%clk 0:01:54.7]} 20... Nd4 {[%clk
0:02:03.5]} 21. Nc4 {[%clk 0:01:52]} 21... Bh6 {[%clk 0:01:55.9]} 22. c3 {[%clk
0:01:45.2]} 22... Nc6 {[%clk 0:01:55.7]} 23. Rfd1 {[%clk 0:01:42.3]} 23... a6
{[%clk 0:01:53.1]} 24. Kg1 {[%clk 0:01:41.1]} 24... b5 {[%clk 0:01:51.7]} 25.
Nd2 {[%clk 0:01:39.8]} 25... Rd8 {[%clk 0:01:34.4]} 26. Ne4 {[%clk 0:01:38.8]}
26... Rd5 {[%clk 0:01:34.9]} 27. Kf2 {[%clk 0:01:37.1]} 27... Na5 {[%clk
0:01:34.2]} 28. Ra1 {[%clk 0:01:27]} 28... Rxd1 {[%clk 0:01:31.2]} 29. Rxd1
{[%clk 0:01:27.9]} 29... Nc4 {[%clk 0:01:30.9]} 30. Ke2 {[%clk 0:01:19.2]} 30...
a5 {[%clk 0:01:22.5]} 31. Nc5 {[%clk 0:01:19.2]} 31... a4 {[%clk 0:01:19.5]} 32.
Rb1 {[%clk 0:01:11.8]} 32... c6 {[%clk 0:01:18.5]} 33. Kd3 {[%clk 0:01:06.6]}
33... a3 {[%clk 0:00:52.7]} 34. g3 {[%clk 0:00:39.9]} 34... g6 {[%clk 0:00:52]}
35. Nxe6 {[%clk 0:00:37.6]} 35... Kd7 {[%clk 0:00:38.8]} 36. Nc5+ {[%clk
0:00:37.2]} 36... Kd6 {[%clk 0:00:34.6]} 37. Ne4+ {[%clk 0:00:37.1]} 37... Ke7
{[%clk 0:00:31.9]} 38. Ra1 {[%clk 0:00:32.8]} 38... Bf8 {[%clk 0:00:30.6]} 39.
Ng5 {[%clk 0:00:27.2]} 39... h6 {[%clk 0:00:28.2]} 40. Ne4 {[%clk 0:00:26.9]}
40... Ke6 {[%clk 0:00:28.3]} 41. g4 {[%clk 0:00:20.1]} 41... g5 {[%clk
0:00:27.3]} 42. Ra2 {[%clk 0:00:13.7]} 42... Nb6 {[%clk 0:00:20.5]} 43. Nd2
{[%clk 0:00:10.8]} 43... c5 {[%clk 0:00:20.5]} 44. Ke4 {[%clk 0:00:10.3]} 44...
c4 {[%clk 0:00:19]} 45. Ra1 {[%clk 0:00:09.5]} 45... Nd5 {[%clk 0:00:18.5]} 46.
Rc1 {[%clk 0:00:08.2]} 46... a2 {[%clk 0:00:16.9]} 47. Nf1 {[%clk 0:00:03.6]}
47... Nxc3+ {[%clk 0:00:16.7]} 48. Ke3 {[%clk 0:00:04.3]} 48... Nb1 {[%clk
0:00:16.7]} 0-1

[Event "*** SCC Grand Prix: Titled Tuesday Blitz"]
[Site "Chess.com"]
[Date "2020.08.25"]
[Round "9"]
[White "Bodnar_Mykola"]
[Black "Paladin61"]
[Result "1-0"]
[WhiteElo "2521"]
[BlackElo "2663"]
[TimeControl "180+1"]
[EndTime "11:47:44 PDT"]
[Termination "Bodnar_Mykola won on time"]

1. e4 {[%clk 0:03:00.9]} 1... c5 {[%clk 0:02:59.7]} 2. Nf3 {[%clk 0:02:58.8]}
2... d6 {[%clk 0:02:59.9]} 3. d4 {[%clk 0:02:59.1]} 3... cxd4 {[%clk 0:03:00.1]}
4. Nxd4 {[%clk 0:03:00]} 4... Nf6 {[%clk 0:03:00.3]} 5. Nc3 {[%clk 0:03:00.5]}
5... a6 {[%clk 0:03:00.5]} 6. h3 {[%clk 0:02:59.3]} 6... h6 {[%clk 0:02:52.6]}
7. g4 {[%clk 0:02:56.5]} 7... b5 {[%clk 0:02:45.3]} 8. Bg2 {[%clk 0:02:53.6]}
8... Bb7 {[%clk 0:02:45.5]} 9. O-O {[%clk 0:02:52.5]} 9... e6 {[%clk 0:02:45.3]}
10. Re1 {[%clk 0:02:52.1]} 10... Qc8 {[%clk 0:02:33.7]} 11. a4 {[%clk
0:02:44.5]} 11... bxa4 {[%clk 0:02:20.2]} 12. Nd5 {[%clk 0:02:43.2]} 12... Nbd7
{[%clk 0:02:11.6]} 13. Rxa4 {[%clk 0:02:32.5]} 13... Be7 {[%clk 0:01:41.1]} 14.
Nxe7 {[%clk 0:02:27.3]} 14... Kxe7 {[%clk 0:01:42]} 15. Rb4 {[%clk 0:02:26.4]}
15... Rb8 {[%clk 0:01:36.8]} 16. Bf4 {[%clk 0:01:59.1]} 16... Ne5 {[%clk
0:01:30]} 17. Bg3 {[%clk 0:01:55.6]} 17... g5 {[%clk 0:01:27.5]} 18. f4 {[%clk
0:01:32.9]} 18... gxf4 {[%clk 0:01:26.3]} 19. Bxf4 {[%clk 0:01:33.8]} 19... Qc5
{[%clk 0:01:12.2]} 20. c3 {[%clk 0:01:33]} 20... Nc6 {[%clk 0:01:07.1]} 21.
Bxd6+ {[%clk 0:01:08.3]} 21... Qxd6 {[%clk 0:00:37.9]} 22. Rxb7+ {[%clk
0:01:07.2]} 22... Rxb7 {[%clk 0:00:37.5]} 23. e5 {[%clk 0:01:07.5]} 23... Nxe5
{[%clk 0:00:26.5]} 24. Rxe5 {[%clk 0:01:00.4]} 24... Qb6 {[%clk 0:00:21.2]} 25.
Kh1 {[%clk 0:00:56.6]} 25... Kf8 {[%clk 0:00:14.1]} 26. Bxb7 {[%clk 0:00:49.7]}
26... Qxb7+ {[%clk 0:00:13.1]} 27. Qf3 {[%clk 0:00:44.7]} 27... Qxf3+ {[%clk
0:00:12.6]} 28. Nxf3 {[%clk 0:00:45.6]} 28... Nd5 {[%clk 0:00:10.2]} 29. c4
{[%clk 0:00:44.5]} 29... Nb4 {[%clk 0:00:10.3]} 30. Rc5 {[%clk 0:00:41.5]} 30...
Ke7 {[%clk 0:00:09.6]} 31. Rc7+ {[%clk 0:00:41.4]} 31... Kf6 {[%clk 0:00:09.1]}
32. h4 {[%clk 0:00:41.6]} 32... a5 {[%clk 0:00:02]} 33. g5+ {[%clk 0:00:42]}
33... hxg5 {[%clk 0:00:01.8]} 34. Rc5 {[%clk 0:00:35.2]} 34... g4 {[%clk
0:00:02.7]} 35. Ng5 {[%clk 0:00:32.5]} 35... Rxh4+ {[%clk 0:00:03.2]} 36. Kg2
{[%clk 0:00:33.4]} 36... Rh6 {[%clk 0:00:02.9]} 37. Ne4+ {[%clk 0:00:31]} 37...
Kg6 {[%clk 0:00:03]} 38. Rg5+ {[%clk 0:00:29.8]} 38... Kh7 {[%clk 0:00:03.2]}
39. Rxa5 {[%clk 0:00:29.6]} 39... f5 {[%clk 0:00:01.8]} 40. Ng5+ {[%clk
0:00:28.8]} 40... Kg7 {[%clk 0:00:01.3]} 41. Ra7+ {[%clk 0:00:26.3]} 41... Kf6
{[%clk 0:00:02.2]} 42. Nh7+ {[%clk 0:00:22.3]} 42... Rxh7 {[%clk 0:00:02.3]} 43.
Rxh7 {[%clk 0:00:21.7]} 43... f4 {[%clk 0:00:02.7]} 44. c5 {[%clk 0:00:20.4]}
44... Kf5 {[%clk 0:00:01.9]} 45. Rf7+ {[%clk 0:00:20]} 45... Ke4 {[%clk
0:00:01.6]} 46. Rg7 {[%clk 0:00:19.5]} 46... g3 {[%clk 0:00:01.3]} 47. Rf7
{[%clk 0:00:19.6]} 1-0

[Event "*** SCC Grand Prix: Titled Tuesday Blitz"]
[Site "Chess.com"]
[Date "2020.08.25"]
[Round "9"]
[White "RodinMihail"]
[Black "Region_07"]
[Result "0-1"]
[WhiteElo "2479"]
[BlackElo "2387"]
[TimeControl "180+1"]
[EndTime "11:47:46 PDT"]
[Termination "Region_07 won by checkmate"]

1. e4 {[%clk 0:03:00.9]} 1... c6 {[%clk 0:02:58.4]} 2. d4 {[%clk 0:03:00]} 2...
d5 {[%clk 0:02:59]} 3. e5 {[%clk 0:02:59.9]} 3... Bf5 {[%clk 0:02:53.3]} 4. Nc3
{[%clk 0:02:59.6]} 4... e6 {[%clk 0:02:53.1]} 5. g4 {[%clk 0:02:59.4]} 5... Bg6
{[%clk 0:02:52.2]} 6. Nge2 {[%clk 0:02:59.9]} 6... h6 {[%clk 0:02:47.7]} 7. Be3
{[%clk 0:02:59.3]} 7... Ne7 {[%clk 0:02:43.3]} 8. f4 {[%clk 0:02:58.4]} 8... Nd7
{[%clk 0:02:32.8]} 9. Ng3 {[%clk 0:02:54.1]} 9... h5 {[%clk 0:02:25.4]} 10. gxh5
{[%clk 0:02:48.7]} 10... Bh7 {[%clk 0:02:23]} 11. Bd3 {[%clk 0:02:46.2]} 11...
Bxd3 {[%clk 0:02:21.9]} 12. Qxd3 {[%clk 0:02:47.1]} 12... Rc8 {[%clk 0:02:18.9]}
13. O-O-O {[%clk 0:02:45.6]} 13... Qa5 {[%clk 0:02:07.2]} 14. Kb1 {[%clk
0:02:42.1]} 14... c5 {[%clk 0:02:05]} 15. dxc5 {[%clk 0:02:12.5]} 15... Nxc5
{[%clk 0:02:05.9]} 16. Bxc5 {[%clk 0:02:08.3]} 16... Qxc5 {[%clk 0:02:02]} 17.
Nce4 {[%clk 0:02:02.7]} 17... Qc6 {[%clk 0:01:49.1]} 18. Nd6+ {[%clk 0:02:02.4]}
18... Kd7 {[%clk 0:01:49.3]} 19. Nxf7 {[%clk 0:02:01.4]} 19... Rg8 {[%clk
0:01:45]} 20. f5 {[%clk 0:02:01.1]} 20... Kc7 {[%clk 0:01:39]} 21. Ng5 {[%clk
0:01:57.4]} 21... Nxf5 {[%clk 0:01:32.6]} 22. Nxf5 {[%clk 0:01:57.2]} 22... exf5
{[%clk 0:01:32.9]} 23. Qxf5 {[%clk 0:01:46.7]} 23... Kb8 {[%clk 0:01:32.8]} 24.
e6 {[%clk 0:01:32]} 24... Be7 {[%clk 0:01:30.1]} 25. Nf7 {[%clk 0:01:26.4]}
25... d4 {[%clk 0:01:24.5]} 26. Ne5 {[%clk 0:01:18.7]} 26... Qg2 {[%clk
0:01:17.3]} 27. Nd7+ {[%clk 0:01:11.7]} 27... Ka8 {[%clk 0:01:16.7]} 28. h4
{[%clk 0:01:02.4]} 28... Rc6 {[%clk 0:01:05.1]} 29. Rhg1 {[%clk 0:00:59]} 29...
Qe2 {[%clk 0:01:01]} 30. Rge1 {[%clk 0:00:56.7]} 30... Qg2 {[%clk 0:00:58]} 31.
Rxd4 {[%clk 0:00:44.9]} 31... Rgc8 {[%clk 0:00:55.2]} 32. c3 {[%clk 0:00:43.8]}
32... Qg3 {[%clk 0:00:48.3]} 33. Rde4 {[%clk 0:00:41.2]} 33... Qd3+ {[%clk
0:00:46.8]} 34. Ka1 {[%clk 0:00:38.2]} 34... Rxc3 {[%clk 0:00:46.7]} 35. Qf4
{[%clk 0:00:21.6]} 35... Bd6 {[%clk 0:00:19.1]} 36. Qg5 {[%clk 0:00:10]} 36...
Rc2 {[%clk 0:00:13.3]} 37. e7 {[%clk 0:00:08.8]} 37... Qxe4 {[%clk 0:00:12.6]}
38. Rb1 {[%clk 0:00:05.9]} 38... Qxe7 {[%clk 0:00:12]} 39. Qxe7 {[%clk
0:00:05.7]} 39... Bxe7 {[%clk 0:00:12.9]} 40. Ne5 {[%clk 0:00:06.1]} 40... Bf6
{[%clk 0:00:12.9]} 41. Nd3 {[%clk 0:00:06]} 41... Rd2 {[%clk 0:00:12.9]} 42. Nf4
{[%clk 0:00:04]} 42... Rcc2 {[%clk 0:00:12.2]} 43. Nd3 {[%clk 0:00:02.7]} 43...
Rxd3 {[%clk 0:00:11.8]} 44. a3 {[%clk 0:00:03.6]} 44... Rxa3# {[%clk 0:00:10.5]}
0-1

[Event "*** SCC Grand Prix: Titled Tuesday Blitz"]
[Site "Chess.com"]
[Date "2020.08.25"]
[Round "9"]
[White "korkmaz16"]
[Black "Alembong"]
[Result "0-1"]
[WhiteElo "2297"]
[BlackElo "2438"]
[TimeControl "180+1"]
[EndTime "11:47:47 PDT"]
[Termination "Alembong won by resignation"]

1. d4 {[%clk 0:02:57.3]} 1... d5 {[%clk 0:02:59]} 2. Nf3 {[%clk 0:02:56.6]} 2...
Nf6 {[%clk 0:02:58.2]} 3. e3 {[%clk 0:02:56.4]} 3... c5 {[%clk 0:02:57.2]} 4. b3
{[%clk 0:02:56]} 4... Nc6 {[%clk 0:02:55.7]} 5. Bd3 {[%clk 0:02:55.5]} 5... Bg4
{[%clk 0:02:54.9]} 6. Bb2 {[%clk 0:02:55.2]} 6... cxd4 {[%clk 0:02:53.6]} 7.
exd4 {[%clk 0:02:54.8]} 7... e6 {[%clk 0:02:54]} 8. O-O {[%clk 0:02:54.3]} 8...
Be7 {[%clk 0:02:51.5]} 9. Nbd2 {[%clk 0:02:53.6]} 9... O-O {[%clk 0:02:50.7]}
10. Re1 {[%clk 0:02:52.1]} 10... Nb4 {[%clk 0:02:50.1]} 11. Be2 {[%clk
0:02:51.7]} 11... Bf5 {[%clk 0:02:45.8]} 12. Rc1 {[%clk 0:01:57.7]} 12... Nxa2
{[%clk 0:02:42.9]} 13. Ra1 {[%clk 0:01:57.3]} 13... Nb4 {[%clk 0:02:43.5]} 14.
Rc1 {[%clk 0:01:57.5]} 14... Rc8 {[%clk 0:02:40.4]} 15. c4 {[%clk 0:01:56.9]}
15... b6 {[%clk 0:02:32.5]} 16. Ne5 {[%clk 0:01:50.7]} 16... Nd7 {[%clk
0:02:26.6]} 17. Ndf3 {[%clk 0:01:41.8]} 17... Nxe5 {[%clk 0:02:06.3]} 18. Nxe5
{[%clk 0:01:42.7]} 18... Bf6 {[%clk 0:01:47.6]} 19. Qd2 {[%clk 0:01:41.9]} 19...
a5 {[%clk 0:01:35.8]} 20. Ng4 {[%clk 0:01:41]} 20... Bxg4 {[%clk 0:01:34.2]} 21.
Bxg4 {[%clk 0:01:40.7]} 21... dxc4 {[%clk 0:01:31.2]} 22. bxc4 {[%clk
0:01:38.7]} 22... Qd6 {[%clk 0:01:22.3]} 23. d5 {[%clk 0:01:36.2]} 23... Bxb2
{[%clk 0:01:21.8]} 24. Qxb2 {[%clk 0:01:33.7]} 24... Nd3 {[%clk 0:01:21.9]} 25.
Qd4 {[%clk 0:01:19.8]} 25... Nxc1 {[%clk 0:01:15.8]} 26. Rxc1 {[%clk 0:01:19.1]}
26... Rc5 {[%clk 0:00:52]} 27. Rd1 {[%clk 0:01:08.2]} 27... e5 {[%clk
0:00:45.6]} 28. Qd3 {[%clk 0:01:02.7]} 28... g6 {[%clk 0:00:44.2]} 29. h4 {[%clk
0:01:00.4]} 29... f5 {[%clk 0:00:43.8]} 30. Be2 {[%clk 0:01:00.7]} 30... Qf6
{[%clk 0:00:34.3]} 31. h5 {[%clk 0:00:51.7]} 31... e4 {[%clk 0:00:33.9]} 32. Qg3
{[%clk 0:00:46.8]} 32... f4 {[%clk 0:00:32.4]} 33. Qg4 {[%clk 0:00:46.9]} 33...
f3 {[%clk 0:00:31.6]} 34. gxf3 {[%clk 0:00:38.7]} 34... exf3 {[%clk 0:00:32.5]}
35. Bf1 {[%clk 0:00:38.5]} 35... Qf5 {[%clk 0:00:26.6]} 36. Qg3 {[%clk
0:00:27.7]} 36... Qxh5 {[%clk 0:00:25.1]} 37. Rd4 {[%clk 0:00:27.6]} 37... Rcc8
{[%clk 0:00:20.6]} 38. d6 {[%clk 0:00:24.6]} 38... Rcd8 {[%clk 0:00:20]} 39. Rd5
{[%clk 0:00:21.1]} 39... Rf5 {[%clk 0:00:19.1]} 40. Rxf5 {[%clk 0:00:19]} 40...
Qxf5 {[%clk 0:00:20]} 41. c5 {[%clk 0:00:19.3]} 41... bxc5 {[%clk 0:00:19.5]}
42. Bc4+ {[%clk 0:00:18.9]} 42... Kg7 {[%clk 0:00:18.5]} 43. Qh4 {[%clk
0:00:18.4]} 43... Qf6 {[%clk 0:00:18.4]} 44. Qe4 {[%clk 0:00:15]} 44... Rxd6
{[%clk 0:00:17.6]} 45. Qb7+ {[%clk 0:00:15.2]} 45... Kh6 {[%clk 0:00:17.7]} 46.
Qe4 {[%clk 0:00:12.6]} 46... Rd1+ {[%clk 0:00:16.9]} 47. Kh2 {[%clk 0:00:13.1]}
47... Qg5 {[%clk 0:00:14.9]} 48. Qxf3 {[%clk 0:00:12]} 48... Qh5+ {[%clk
0:00:13.9]} 49. Qxh5+ {[%clk 0:00:10.9]} 49... gxh5 {[%clk 0:00:14.8]} 50. Be2
{[%clk 0:00:10.5]} 50... Rd2 {[%clk 0:00:14.8]} 0-1

[Event "*** SCC Grand Prix: Titled Tuesday Blitz"]
[Site "Chess.com"]
[Date "2020.08.25"]
[Round "9"]
[White "icychess54"]
[Black "Ariadna_Atreides"]
[Result "1-0"]
[WhiteElo "2233"]
[BlackElo "2050"]
[TimeControl "180+1"]
[EndTime "11:47:47 PDT"]
[Termination "icychess54 won on time"]

1. c4 {[%clk 0:03:00.9]} 1... Nf6 {[%clk 0:02:58.1]} 2. Nf3 {[%clk 0:03:00]}
2... g6 {[%clk 0:02:52.9]} 3. e3 {[%clk 0:03:00]} 3... Bg7 {[%clk 0:02:53.5]} 4.
Be2 {[%clk 0:03:00.3]} 4... O-O {[%clk 0:02:52.6]} 5. O-O {[%clk 0:03:00.9]}
5... d5 {[%clk 0:02:50]} 6. Nc3 {[%clk 0:03:01.8]} 6... c6 {[%clk 0:02:48.6]} 7.
b3 {[%clk 0:03:01.6]} 7... Bg4 {[%clk 0:02:44.1]} 8. Bb2 {[%clk 0:03:02]} 8...
Re8 {[%clk 0:02:28.3]} 9. Ne5 {[%clk 0:02:59.6]} 9... Bxe2 {[%clk 0:02:25.5]}
10. Qxe2 {[%clk 0:03:00.5]} 10... Nfd7 {[%clk 0:02:21]} 11. Nxd7 {[%clk
0:02:37.7]} 11... Nxd7 {[%clk 0:02:14.7]} 12. cxd5 {[%clk 0:02:35.7]} 12... cxd5
{[%clk 0:02:14.2]} 13. Qb5 {[%clk 0:02:35.5]} 13... Nb6 {[%clk 0:02:08.6]} 14.
a4 {[%clk 0:02:31.9]} 14... Qd7 {[%clk 0:02:01]} 15. Qxd7 {[%clk 0:02:15.5]}
15... Nxd7 {[%clk 0:02:00.4]} 16. Rac1 {[%clk 0:02:16.4]} 16... Rac8 {[%clk
0:01:53.5]} 17. Ba3 {[%clk 0:02:06.5]} 17... e6 {[%clk 0:01:41.1]} 18. Nb5
{[%clk 0:02:04.7]} 18... Bf8 {[%clk 0:00:33.9]} 19. Bxf8 {[%clk 0:01:58.9]}
19... Rxf8 {[%clk 0:00:33.6]} 20. Nxa7 {[%clk 0:01:59.2]} 20... Rxc1 {[%clk
0:00:26.4]} 21. Rxc1 {[%clk 0:02:00.1]} 21... Rb8 {[%clk 0:00:21.9]} 22. Rc7
{[%clk 0:01:52.3]} 22... Ne5 {[%clk 0:00:20.3]} 23. Nb5 {[%clk 0:01:37.7]} 23...
Nc6 {[%clk 0:00:19.2]} 24. Nd6 {[%clk 0:01:35.8]} 24... Na5 {[%clk 0:00:15.9]}
25. Nxf7 {[%clk 0:01:30.5]} 25... Nxb3 {[%clk 0:00:15.6]} 26. Ng5 {[%clk
0:01:28.5]} 26... Nxd2 {[%clk 0:00:10.2]} 27. Nxh7 {[%clk 0:01:14.7]} 27... Ra8
{[%clk 0:00:10.1]} 28. Nf6+ {[%clk 0:00:57.6]} 28... Kf8 {[%clk 0:00:09.3]} 29.
Rxb7 {[%clk 0:00:53.4]} 29... Rxa4 {[%clk 0:00:08.9]} 30. g3 {[%clk 0:00:45.5]}
30... Nf3+ {[%clk 0:00:08.3]} 31. Kg2 {[%clk 0:00:45.5]} 31... Ne1+ {[%clk
0:00:08.7]} 32. Kf1 {[%clk 0:00:43]} 32... Ra1 {[%clk 0:00:08.4]} 33. h4 {[%clk
0:00:40]} 33... Nd3+ {[%clk 0:00:03.9]} 34. Ke2 {[%clk 0:00:36.6]} 34... Ne5
{[%clk 0:00:03.9]} 35. f4 {[%clk 0:00:29.6]} 35... Ra2+ {[%clk 0:00:03.1]} 36.
Kd1 {[%clk 0:00:24.2]} 36... Nf3 {[%clk 0:00:03.6]} 37. Nd7+ {[%clk 0:00:19.5]}
37... Ke8 {[%clk 0:00:02.6]} 38. Nf6+ {[%clk 0:00:20]} 38... Kf8 {[%clk
0:00:02.7]} 39. Nh7+ {[%clk 0:00:19.3]} 39... Kg8 {[%clk 0:00:02.7]} 40. Ng5
{[%clk 0:00:18]} 40... Nxg5 {[%clk 0:00:02.1]} 41. hxg5 {[%clk 0:00:18.3]} 41...
Rg2 {[%clk 0:00:02.5]} 42. Re7 {[%clk 0:00:16.9]} 42... Rxg3 {[%clk 0:00:02.6]}
43. Rxe6 {[%clk 0:00:16]} 43... Kf7 {[%clk 0:00:03.1]} 44. Re5 {[%clk
0:00:14.1]} 44... Rg2 {[%clk 0:00:01.4]} 45. Rxd5 {[%clk 0:00:12.9]} 45... Ke6
{[%clk 0:00:01.7]} 46. Re5+ {[%clk 0:00:12.8]} 46... Kd6 {[%clk 0:00:01.6]} 47.
Ke1 {[%clk 0:00:13.4]} 1-0

[Event "*** SCC Grand Prix: Titled Tuesday Blitz"]
[Site "Chess.com"]
[Date "2020.08.25"]
[Round "9"]
[White "MariaFominykh"]
[Black "Euge_chess"]
[Result "1-0"]
[WhiteElo "2290"]
[BlackElo "2082"]
[TimeControl "180+1"]
[EndTime "11:47:49 PDT"]
[Termination "MariaFominykh won on time"]

1. d4 {[%clk 0:03:00.9]} 1... Nf6 {[%clk 0:02:59.4]} 2. c4 {[%clk 0:03:01.8]}
2... c5 {[%clk 0:02:59.5]} 3. d5 {[%clk 0:03:00.8]} 3... e6 {[%clk 0:02:59.7]}
4. Nc3 {[%clk 0:02:58.5]} 4... exd5 {[%clk 0:02:58.6]} 5. cxd5 {[%clk
0:02:57.6]} 5... d6 {[%clk 0:02:58.9]} 6. e4 {[%clk 0:02:57.5]} 6... g6 {[%clk
0:02:58.8]} 7. Nf3 {[%clk 0:02:55.4]} 7... Bg7 {[%clk 0:02:58.8]} 8. Be2 {[%clk
0:02:53.3]} 8... O-O {[%clk 0:02:58.4]} 9. O-O {[%clk 0:02:52.7]} 9... Re8
{[%clk 0:02:56.9]} 10. Nd2 {[%clk 0:02:49.6]} 10... a6 {[%clk 0:02:46.6]} 11. a4
{[%clk 0:02:48.7]} 11... b6 {[%clk 0:02:46.5]} 12. Qc2 {[%clk 0:02:33.6]} 12...
Nbd7 {[%clk 0:02:44.2]} 13. h3 {[%clk 0:02:29.4]} 13... Rb8 {[%clk 0:02:43]} 14.
Nc4 {[%clk 0:02:16.4]} 14... Ne5 {[%clk 0:02:36]} 15. Ne3 {[%clk 0:02:13.9]}
15... Qc7 {[%clk 0:01:49.3]} 16. Bd2 {[%clk 0:01:58.8]} 16... g5 {[%clk
0:01:44.7]} 17. f4 {[%clk 0:01:07.8]} 17... gxf4 {[%clk 0:01:42.1]} 18. Rxf4
{[%clk 0:01:06.5]} 18... Ng6 {[%clk 0:01:42.4]} 19. Rf2 {[%clk 0:00:57.6]} 19...
Qe7 {[%clk 0:01:41]} 20. Nf5 {[%clk 0:00:44.9]} 20... Bxf5 {[%clk 0:01:35.9]}
21. exf5 {[%clk 0:00:45]} 21... Ne5 {[%clk 0:01:29.4]} 22. Bg5 {[%clk 0:00:43]}
22... Qb7 {[%clk 0:01:22.6]} 23. Kh1 {[%clk 0:00:31]} 23... Nxd5 {[%clk
0:01:11.3]} 24. f6 {[%clk 0:00:30.5]} 24... Bf8 {[%clk 0:00:48.2]} 25. Nxd5
{[%clk 0:00:28.1]} 25... Qxd5 {[%clk 0:00:47.3]} 26. Bxa6 {[%clk 0:00:27.8]}
26... Ng6 {[%clk 0:00:36.3]} 27. Rf5 {[%clk 0:00:21.3]} 27... Qe4 {[%clk
0:00:32.2]} 28. Bd3 {[%clk 0:00:19.3]} 28... Qe6 {[%clk 0:00:25.8]} 29. Raf1
{[%clk 0:00:15.1]} 29... d5 {[%clk 0:00:23.1]} 30. Bb5 {[%clk 0:00:14.8]} 30...
Red8 {[%clk 0:00:20.5]} 31. Qd1 {[%clk 0:00:13.4]} 31... d4 {[%clk 0:00:14.6]}
32. Qh5 {[%clk 0:00:12.9]} 32... d3 {[%clk 0:00:12]} 33. Bh6 {[%clk 0:00:11.7]}
33... d2 {[%clk 0:00:09.7]} 34. Rd1 {[%clk 0:00:06.9]} 34... Bxh6 {[%clk
0:00:09]} 35. Qxh6 {[%clk 0:00:04]} 35... Qe1+ {[%clk 0:00:08]} 36. Rf1 {[%clk
0:00:02.9]} 36... Qxf1+ {[%clk 0:00:01.6]} 37. Bxf1 {[%clk 0:00:02.8]} 1-0